[Event "Kvibergspelen 2018"]
[Site "Prioritet Serneke Arena, Krutvagen 2, Gothenburg, Sweden"]
[Date "2018.04.21"]
[Round "3.17"]
[White "Rasti, Arvin"]
[Black "Cramling, Anna"]
[Result "1-0"]
[TimeControl "15 minutes + 5 seconds per move from move one (Round 1 - 4) / 90 minutes + 30 seconds per move from move one (Round 5 - 8)"]
[BlackTitle "WFM"]
[WhiteFideId "1741160"]
[BlackFideId "32009232"]
[WhiteElo "1920"]
[BlackElo "2168"]

1. d4 {[%clk 00:15:08]} {[%emt 00:03:47]} d5 {[%clk 00:15:09]} {[%emt
00:00:01]} 2. c4 {[%clk 00:15:12]} {[%emt 00:00:01]} dxc4 {[%clk 00:15:12]}
{[%emt 00:00:03]} 3. e4 {[%clk 00:15:12]} {[%emt 00:00:03]} c5 {[%clk
00:14:59]} {[%emt 00:00:18]} 4. Nf3 {[%clk 00:14:52]} {[%emt 00:00:26]} cxd4
{[%clk 00:11:32]} {[%emt 00:03:32]} 5. Qxd4 {[%clk 00:14:21]} {[%emt 00:00:35]}
Bd7 {[%clk 00:10:14]} {[%emt 00:01:24]} 6. Bxc4 {[%clk 00:13:13]} {[%emt
00:01:13]} e6 {[%clk 00:09:53]} {[%emt 00:00:26]} 7. Nc3 {[%clk 00:12:26]}
{[%emt 00:00:53]} Nc6 {[%clk 00:09:49]} {[%emt 00:00:09]} 8. Qd1 {[%clk
00:11:22]} {[%emt 00:01:09]} Bb4 {[%clk 00:08:59]} {[%emt 00:00:55]} 9. Bd2
{[%clk 00:09:17]} {[%emt 00:02:09]} Nf6 {[%clk 00:08:20]} {[%emt 00:00:44]} 10.
Qe2 {[%clk 00:08:24]} {[%emt 00:00:58]} Ng4 {[%clk 00:07:06]} {[%emt 00:01:18]}
11. O-O {[%clk 00:07:39]} {[%emt 00:00:50]} Nge5 {[%clk 00:06:46]} {[%emt
00:00:26]} 12. Nxe5 {[%clk 00:07:21]} {[%emt 00:00:23]} Nxe5 {[%clk 00:06:48]}
{[%emt 00:00:02]} 13. Rfd1 {[%clk 00:07:11]} {[%emt 00:00:15]} Qe7 {[%clk
00:05:56]} {[%emt 00:00:58]} 14. a3 {[%clk 00:06:50]} {[%emt 00:00:26]} Bc5
{[%clk 00:05:50]} {[%emt 00:00:11]} 15. b4 {[%clk 00:06:22]} {[%emt 00:00:33]}
Bb6 {[%clk 00:05:25]} {[%emt 00:00:30]} 16. Bf4 {[%clk 00:04:36]} {[%emt
00:01:50]} Nxc4 {[%clk 00:03:23]} {[%emt 00:02:07]} 17. Qxc4 {[%clk 00:04:39]}
{[%emt 00:00:02]} e5 {[%clk 00:03:06]} {[%emt 00:00:22]} 18. Nd5 {[%clk
00:03:59]} {[%emt 00:00:45]} Qe6 {[%clk 00:03:10]} {[%emt 00:00:01]} 19. Be3
{[%clk 00:03:52]} {[%emt 00:00:12]} Rc8 {[%clk 00:02:08]} {[%emt 00:01:07]} 20.
Qd3 {[%clk 00:03:36]} {[%emt 00:00:21]} Bxe3 {[%clk 00:01:02]} {[%emt
00:01:10]} 21. Nxe3 {[%clk 00:03:40]} {[%emt 00:00:02]} Ba4 {[%clk 00:00:43]}
{[%emt 00:00:24]} 22. Nf5 {[%clk 00:03:18]} {[%emt 00:00:26]} O-O {[%clk
00:00:43]} {[%emt 00:00:05]} 23. Qg3 {[%clk 00:02:59]} {[%emt 00:00:23]} g6
{[%clk 00:00:47]} {[%emt 00:00:02]} 24. Rd6 {[%clk 00:02:53]} {[%emt 00:00:11]}
Qe8 {[%clk 00:00:13]} {[%emt 00:00:39]} 25. h3 {[%clk 00:02:05]} {[%emt
00:00:53]} Rc6 {[%clk 00:00:12]} {[%emt 00:00:06]} 26. Rd3 {[%clk 00:01:20]}
{[%emt 00:00:51]} Kh8 {[%clk 00:00:09]} {[%emt 00:00:07]} 27. Ne3 {[%clk
00:01:06]} {[%emt 00:00:19]} Qc8 {[%clk 00:00:07]} {[%emt 00:00:07]} 28. Qxe5
{[%clk 00:01:05]} {[%emt 00:00:07]} f6 {[%clk 00:00:12]} 29. Qd5 {[%clk
00:01:01]} {[%emt 00:00:05]} Rc1+ {[%clk 00:00:13]} {[%emt 00:00:06]} 30. Rxc1
{[%clk 00:01:06]} Qxc1+ {[%clk 00:00:16]} {[%emt 00:00:02]} 31. Kh2 {[%clk
00:01:11]} Qc7 {[%clk 00:00:15]} {[%emt 00:00:07]} 32. Qd6 {[%clk 00:01:14]}
{[%emt 00:00:01]} Rc8 {[%clk 00:00:08]} {[%emt 00:00:11]} 33. Qxc7 {[%clk
00:01:15]} {[%emt 00:00:06]} Rxc7 {[%clk 00:00:12]} 34. Nd5 {[%clk 00:01:15]}
{[%emt 00:00:05]} Rc2 {[%clk 00:00:08]} {[%emt 00:00:09]} 35. Kg3 {[%clk
00:01:14]} {[%emt 00:00:06]} Bb5 {[%clk 00:00:08]} {[%emt 00:00:05]} 36. Rd4
{[%clk 00:01:15]} {[%emt 00:00:05]} f5 {[%clk 00:00:09]} {[%emt 00:00:04]} 37.
exf5 {[%clk 00:01:16]} {[%emt 00:00:04]} gxf5 {[%clk 00:00:11]} {[%emt
00:00:03]} 38. Nf4 {[%clk 00:01:20]} {[%emt 00:00:01]} Rc3+ {[%clk 00:00:13]}
{[%emt 00:00:02]} 39. Kh4 {[%clk 00:01:22]} {[%emt 00:00:04]} Rxa3 {[%clk
00:00:14]} {[%emt 00:00:04]} 40. Kg5 {[%clk 00:01:25]} {[%emt 00:00:01]} Ra6
{[%clk 00:00:07]} {[%emt 00:00:12]} 41. Rd5 {[%clk 00:01:24]} {[%emt 00:00:06]}
Ba4 {[%clk 00:00:06]} {[%emt 00:00:07]} 42. Rxf5 {[%clk 00:01:17]} {[%emt
00:00:11]} h6+ {[%clk 00:00:08]} {[%emt 00:00:03]} 43. Kh5 {[%clk 00:01:21]}
{[%emt 00:00:01]} Be8 {[%clk 00:00:10]} {[%emt 00:00:02]} 44. Kh4 {[%clk
00:01:24]} {[%emt 00:00:02]} Kg7 {[%clk 00:00:14]} {[%emt 00:00:01]} 45. Re5
{[%clk 00:01:24]} {[%emt 00:00:04]} Bf7 {[%clk 00:00:14]} {[%emt 00:00:06]} 46.
Re7 {[%clk 00:01:25]} {[%emt 00:00:04]} Rb6 {[%clk 00:00:13]} {[%emt 00:00:07]}
47. Nd3 {[%clk 00:01:13]} {[%emt 00:00:14]} Kf6 {[%clk 00:00:14]} {[%emt
00:00:06]} 48. Re4 {[%clk 00:01:18]} Bg6 {[%clk 00:00:08]} {[%emt 00:00:13]} 49.
Rf4+ {[%clk 00:01:22]} Kg7 {[%clk 00:00:12]} 50. Ne5 {[%clk 00:01:17]} {[%emt
00:00:10]} Be8 {[%clk 00:00:07]} {[%emt 00:00:10]} 51. g4 {[%clk 00:01:19]}
{[%emt 00:00:04]} Re6 {[%clk 00:00:08]} {[%emt 00:00:04]} 52. Nd3 {[%clk
00:01:12]} {[%emt 00:00:12]} Bb5 {[%clk 00:00:07]} {[%emt 00:00:05]} 53. Nc5
{[%clk 00:01:13]} {[%emt 00:00:04]} Re7 {[%clk 00:00:11]} {[%emt 00:00:01]} 54.
Rd4 {[%clk 00:01:08]} {[%emt 00:00:10]} b6 {[%clk 00:00:11]} {[%emt 00:00:05]}
55. Ne4 {[%clk 00:01:07]} {[%emt 00:00:05]} Bc6 {[%clk 00:00:09]} {[%emt
00:00:08]} 56. Nd6 {[%clk 00:01:11]} Bf3 {[%clk 00:00:07]} {[%emt 00:00:07]} 57.
Nf5+ {[%clk 00:01:14]} {[%emt 00:00:03]} 1-0

[Event "Kvibergspelen 2018"]
[Site "Prioritet Serneke Arena, Krutvagen 2, Gothenburg, Sweden"]
[Date "2018.04.21"]
[Round "3.18"]
[White "Kenani, Dariush"]
[Black "Al Hadarani, Hatim"]
[Result "0-1"]
[TimeControl "15 minutes + 5 seconds per move from move one (Round 1 - 4) / 90 minutes + 30 seconds per move from move one (Round 5 - 8)"]
[BlackTitle "FM"]
[WhiteFideId "1707973"]
[BlackFideId "9400273"]
[WhiteElo "1898"]
[BlackElo "2334"]

1. e4 {[%clk 00:15:02]} {[%emt 00:00:06]} c6 {[%clk 00:15:09]} {[%emt
00:00:02]} 2. Nc3 {[%clk 00:14:50]} {[%emt 00:00:17]} g6 {[%clk 00:15:09]}
{[%emt 00:00:04]} 3. Bc4 {[%clk 00:14:34]} {[%emt 00:00:21]} e6 {[%clk
00:14:49]} {[%emt 00:00:25]} 4. Bb3 {[%clk 00:14:27]} {[%emt 00:00:12]} d5
{[%clk 00:14:52]} {[%emt 00:00:02]} 5. d4 {[%clk 00:14:13]} {[%emt 00:00:19]}
Nf6 {[%clk 00:14:13]} {[%emt 00:00:44]} 6. e5 {[%clk 00:13:58]} {[%emt
00:00:20]} Nfd7 {[%clk 00:14:10]} {[%emt 00:00:08]} 7. Nce2 {[%clk 00:13:56]}
{[%emt 00:00:07]} c5 {[%clk 00:14:12]} {[%emt 00:00:04]} 8. c3 {[%clk
00:13:59]} {[%emt 00:00:02]} Nc6 {[%clk 00:14:15]} {[%emt 00:00:02]} 9. f4
{[%clk 00:13:33]} {[%emt 00:00:31]} cxd4 {[%clk 00:14:00]} {[%emt 00:00:20]} 10.
Nxd4 {[%clk 00:13:20]} {[%emt 00:00:19]} Nxd4 {[%clk 00:13:16]} {[%emt
00:00:49]} 11. cxd4 {[%clk 00:12:43]} {[%emt 00:00:42]} Nb8 {[%clk 00:12:02]}
{[%emt 00:01:20]} 12. Nf3 {[%clk 00:12:24]} {[%emt 00:00:24]} Bd7 {[%clk
00:11:53]} {[%emt 00:00:14]} 13. O-O {[%clk 00:11:59]} {[%emt 00:00:29]} Bb5
{[%clk 00:11:46]} {[%emt 00:00:11]} 14. Rf2 {[%clk 00:11:51]} {[%emt 00:00:13]}
a5 {[%clk 00:11:45]} {[%emt 00:00:07]} 15. Ba4 {[%clk 00:11:17]} {[%emt
00:00:39]} Qd7 {[%clk 00:11:30]} {[%emt 00:00:20]} 16. Bxb5 {[%clk 00:11:03]}
{[%emt 00:00:20]} Qxb5 {[%clk 00:11:33]} {[%emt 00:00:02]} 17. Be3 {[%clk
00:10:28]} {[%emt 00:00:39]} Nc6 {[%clk 00:11:36]} {[%emt 00:00:03]} 18. Ne1
{[%clk 00:09:07]} {[%emt 00:01:25]} Be7 {[%clk 00:10:36]} {[%emt 00:01:07]} 19.
g3 {[%clk 00:08:00]} {[%emt 00:01:12]} a4 {[%clk 00:10:18]} {[%emt 00:00:21]}
20. Kg2 {[%clk 00:07:04]} {[%emt 00:01:03]} Na5 {[%clk 00:09:33]} {[%emt
00:00:49]} 21. Rc2 {[%clk 00:05:55]} {[%emt 00:01:14]} O-O {[%clk 00:09:14]}
{[%emt 00:00:25]} 22. Nf3 {[%clk 00:05:45]} {[%emt 00:00:15]} Nc6 {[%clk
00:08:05]} {[%emt 00:01:13]} 23. Bd2 {[%clk 00:05:32]} {[%emt 00:00:18]} f6
{[%clk 00:07:02]} {[%emt 00:01:08]} 24. h4 {[%clk 00:04:42]} {[%emt 00:00:55]}
fxe5 {[%clk 00:05:22]} {[%emt 00:01:45]} 25. dxe5 {[%clk 00:04:45]} {[%emt
00:00:02]} d4 {[%clk 00:04:56]} {[%emt 00:00:31]} 26. Be1 {[%clk 00:04:11]}
{[%emt 00:00:39]} Rad8 {[%clk 00:04:57]} {[%emt 00:00:04]} 27. Rb1 {[%clk
00:03:58]} {[%emt 00:00:18]} Qd5 {[%clk 00:04:48]} {[%emt 00:00:14]} 28. Qd3
{[%clk 00:03:36]} {[%emt 00:00:27]} Qxa2 {[%clk 00:04:13]} {[%emt 00:00:40]} 29.
Rbc1 {[%clk 00:03:32]} {[%emt 00:00:09]} Qd5 {[%clk 00:03:53]} {[%emt
00:00:25]} 30. Rc4 {[%clk 00:03:21]} {[%emt 00:00:17]} Ra8 {[%clk 00:02:04]}
{[%emt 00:01:53]} 31. Kf2 {[%clk 00:02:54]} {[%emt 00:00:32]} a3 {[%clk
00:02:06]} {[%emt 00:00:04]} 32. b3 {[%clk 00:02:33]} {[%emt 00:00:26]} a2
{[%clk 00:02:07]} {[%emt 00:00:04]} 33. Ra1 {[%clk 00:02:34]} {[%emt 00:00:04]}
Ra6 {[%clk 00:01:13]} {[%emt 00:01:00]} 34. b4 {[%clk 00:01:52]} {[%emt
00:00:46]} b5 {[%clk 00:01:13]} {[%emt 00:00:05]} 35. Rc2 {[%clk 00:01:39]}
{[%emt 00:00:17]} Rd8 {[%clk 00:00:42]} {[%emt 00:00:36]} 36. Rb2 {[%clk
00:01:28]} {[%emt 00:00:16]} Rda8 {[%clk 00:00:44]} {[%emt 00:00:03]} 37. Rb3
{[%clk 00:01:26]} {[%emt 00:00:07]} Ra4 {[%clk 00:00:46]} {[%emt 00:00:03]} 38.
Bd2 {[%clk 00:01:07]} {[%emt 00:00:24]} Rd8 {[%clk 00:00:40]} {[%emt 00:00:11]}
39. Ne1 {[%clk 00:01:02]} {[%emt 00:00:10]} Bxb4 {[%clk 00:00:40]} {[%emt
00:00:05]} 40. Nc2 {[%clk 00:00:56]} {[%emt 00:00:11]} Bxd2 {[%clk 00:00:43]}
{[%emt 00:00:02]} 41. Qxd2 {[%clk 00:00:46]} {[%emt 00:00:15]} Qxb3 {[%clk
00:00:45]} {[%emt 00:00:02]} 0-1

[Event "Kvibergspelen 2018"]
[Site "Prioritet Serneke Arena, Krutvagen 2, Gothenburg, Sweden"]
[Date "2018.04.21"]
[Round "3.19"]
[White "Gonzalez, Emilio"]
[Black "Arman, Deniz"]
[Result "1/2-1/2"]
[TimeControl "15 minutes + 5 seconds per move from move one (Round 1 - 4) / 90 minutes + 30 seconds per move from move one (Round 5 - 8)"]
[BlackTitle "FM"]
[WhiteFideId "1721062"]
[BlackFideId "6302106"]
[WhiteElo "1921"]
[BlackElo "2359"]

1. c4 {[%clk 00:15:07]} {[%emt 00:00:02]} Nf6 {[%clk 00:15:09]} {[%emt
00:00:01]} 2. Nf3 {[%clk 00:15:11]} {[%emt 00:00:03]} g6 {[%clk 00:15:12]} 3.
g3 {[%clk 00:15:14]} {[%emt 00:00:02]} Bg7 {[%clk 00:15:15]} {[%emt 00:00:02]}
4. Bg2 {[%clk 00:15:18]} {[%emt 00:00:01]} O-O {[%clk 00:15:16]} {[%emt
00:00:04]} 5. Nc3 {[%clk 00:15:22]} {[%emt 00:00:02]} d5 {[%clk 00:15:20]} 6.
cxd5 {[%clk 00:15:17]} {[%emt 00:00:10]} Nxd5 {[%clk 00:15:24]} {[%emt
00:00:02]} 7. O-O {[%clk 00:15:17]} {[%emt 00:00:04]} Nc6 {[%clk 00:15:07]}
{[%emt 00:00:22]} 8. d4 {[%clk 00:14:27]} {[%emt 00:00:56]} Nb6 {[%clk
00:14:55]} {[%emt 00:00:16]} 9. Be3 {[%clk 00:12:36]} {[%emt 00:01:56]} Nc4
{[%clk 00:14:32]} {[%emt 00:00:28]} 10. Qb3 {[%clk 00:12:12]} {[%emt 00:00:29]}
Nxe3 {[%clk 00:11:01]} {[%emt 00:03:36]} 11. fxe3 {[%clk 00:12:16]} {[%emt
00:00:01]} e6 {[%clk 00:09:55]} {[%emt 00:01:12]} 12. Rad1 {[%clk 00:12:05]}
{[%emt 00:00:15]} Qe7 {[%clk 00:09:08]} {[%emt 00:00:52]} 13. a3 {[%clk
00:11:41]} {[%emt 00:00:30]} b6 {[%clk 00:08:56]} {[%emt 00:00:17]} 14. Ne5
{[%clk 00:10:47]} {[%emt 00:00:58]} Nxe5 {[%clk 00:08:52]} {[%emt 00:00:09]} 15.
Bxa8 {[%clk 00:10:37]} {[%emt 00:00:16]} Ng4 {[%clk 00:08:54]} {[%emt
00:00:02]} 16. Rd3 {[%clk 00:09:54]} {[%emt 00:00:48]} Ba6 {[%clk 00:07:13]}
{[%emt 00:01:47]} 17. Bf3 {[%clk 00:09:57]} {[%emt 00:00:01]} Bxd3 {[%clk
00:07:16]} {[%emt 00:00:02]} 18. Bxg4 {[%clk 00:09:58]} {[%emt 00:00:04]} Ba6
{[%clk 00:07:17]} {[%emt 00:00:03]} 19. Qa4 {[%clk 00:08:55]} {[%emt 00:01:09]}
Bb7 {[%clk 00:07:21]} {[%emt 00:00:01]} 20. Bf3 {[%clk 00:07:45]} {[%emt
00:01:15]} Bxf3 {[%clk 00:07:06]} {[%emt 00:00:20]} 21. exf3 {[%clk 00:07:48]}
{[%emt 00:00:02]} c5 {[%clk 00:07:07]} {[%emt 00:00:04]} 22. Ne2 {[%clk
00:07:24]} {[%emt 00:00:29]} Qg5 {[%clk 00:06:36]} {[%emt 00:00:36]} 23. f4
{[%clk 00:06:04]} {[%emt 00:01:25]} Qh5 {[%clk 00:06:39]} {[%emt 00:00:03]} 24.
Qc2 {[%clk 00:06:07]} {[%emt 00:00:02]} cxd4 {[%clk 00:06:40]} {[%emt
00:00:04]} 25. Nxd4 {[%clk 00:05:46]} {[%emt 00:00:26]} Bxd4 {[%clk 00:06:43]}
{[%emt 00:00:02]} 26. exd4 {[%clk 00:05:50]} {[%emt 00:00:01]} Qd5 {[%clk
00:06:47]} 27. Rd1 {[%clk 00:05:41]} {[%emt 00:00:15]} h5 {[%clk 00:06:47]}
{[%emt 00:00:05]} 28. Qc7 {[%clk 00:04:32]} {[%emt 00:01:13]} Qf3 {[%clk
00:06:32]} {[%emt 00:00:19]} 29. Qc2 {[%clk 00:03:57]} {[%emt 00:00:41]} h4
{[%clk 00:05:56]} {[%emt 00:00:42]} 30. Qd3 {[%clk 00:03:59]} {[%emt 00:00:03]}
Qg4 {[%clk 00:05:59]} {[%emt 00:00:02]} 31. Kg2 {[%clk 00:03:09]} {[%emt
00:00:54]} h3+ {[%clk 00:06:02]} {[%emt 00:00:02]} 32. Kf2 {[%clk 00:03:11]}
{[%emt 00:00:02]} Rc8 {[%clk 00:06:03]} {[%emt 00:00:04]} 33. d5 {[%clk
00:02:55]} {[%emt 00:00:22]} exd5 {[%clk 00:05:31]} {[%emt 00:00:37]} 34. Qxd5
{[%clk 00:02:57]} {[%emt 00:00:03]} Rc2+ {[%clk 00:05:21]} {[%emt 00:00:14]} 35.
Rd2 {[%clk 00:03:01]} {[%emt 00:00:02]} Qc8 {[%clk 00:05:18]} {[%emt 00:00:08]}
36. Kf3 {[%clk 00:02:12]} {[%emt 00:00:54]} Rc5 {[%clk 00:01:36]} {[%emt
00:03:47]} 37. Qd8+ {[%clk 00:01:42]} {[%emt 00:00:35]} Qxd8 {[%clk 00:01:21]}
{[%emt 00:00:21]} 38. Rxd8+ {[%clk 00:01:45]} {[%emt 00:00:01]} Kg7 {[%clk
00:01:25]} 39. Rd2 {[%clk 00:00:48]} {[%emt 00:01:02]} f5 {[%clk 00:00:16]}
{[%emt 00:01:13]} 40. g4 {[%clk 00:00:51]} {[%emt 00:00:02]} Kf6 {[%clk
00:00:12]} {[%emt 00:00:10]} 41. g5+ {[%clk 00:00:49]} {[%emt 00:00:07]} Ke6
{[%clk 00:00:16]} {[%emt 00:00:01]} 42. Kg3 {[%clk 00:00:51]} {[%emt 00:00:03]}
Rc4 {[%clk 00:00:16]} {[%emt 00:00:05]} 43. Rf2 {[%clk 00:00:44]} {[%emt
00:00:12]} Re4 {[%clk 00:00:08]} {[%emt 00:00:13]} 44. Kxh3 {[%clk 00:00:47]}
{[%emt 00:00:02]} Kd5 {[%clk 00:00:12]} {[%emt 00:00:02]} 45. Kg3 {[%clk
00:00:50]} {[%emt 00:00:02]} Kc4 {[%clk 00:00:14]} {[%emt 00:00:03]} 46. h4
{[%clk 00:00:52]} {[%emt 00:00:02]} Re8 {[%clk 00:00:10]} {[%emt 00:00:08]} 47.
h5 {[%clk 00:00:54]} {[%emt 00:00:04]} Rh8 {[%clk 00:00:07]} {[%emt 00:00:08]}
48. h6 {[%clk 00:00:58]} {[%emt 00:00:01]} Kb3 {[%clk 00:00:11]} {[%emt
00:00:02]} 49. Re2 {[%clk 00:01:01]} {[%emt 00:00:01]} a5 {[%clk 00:00:14]}
{[%emt 00:00:02]} 50. Kf3 {[%clk 00:01:05]} {[%emt 00:00:01]} a4 {[%clk
00:00:17]} {[%emt 00:00:02]} 51. Ke3 {[%clk 00:00:36]} {[%emt 00:00:33]} Re8
{[%clk 00:00:12]} {[%emt 00:00:11]} 52. Kf3 {[%clk 00:00:38]} {[%emt 00:00:03]}
Rh8 {[%clk 00:00:09]} {[%emt 00:00:09]} 53. Re6 {[%clk 00:00:22]} {[%emt
00:00:20]} b5 {[%clk 00:00:10]} {[%emt 00:00:04]} 54. Rxg6 {[%clk 00:00:24]}
{[%emt 00:00:03]} Kxb2 {[%clk 00:00:07]} {[%emt 00:00:09]} 55. Rg7 {[%clk
00:00:28]} Kxa3 {[%clk 00:00:10]} {[%emt 00:00:02]} 56. h7 {[%clk 00:00:32]} b4
{[%clk 00:00:14]} {[%emt 00:00:02]} 57. g6 {[%clk 00:00:36]} b3 {[%clk
00:00:13]} {[%emt 00:00:06]} 58. Rg8 {[%clk 00:00:40]} b2 {[%clk 00:00:17]} 59.
Rxh8 {[%clk 00:00:39]} {[%emt 00:00:06]} b1=Q {[%clk 00:00:21]} {[%emt
00:00:01]} 60. Re8 {[%clk 00:00:30]} {[%emt 00:00:14]} Qh1 {[%clk 00:00:15]}
{[%emt 00:00:11]} 61. Kg3 {[%clk 00:00:25]} {[%emt 00:00:10]} Qg1 {[%clk
00:00:18]} {[%emt 00:00:01]} 62. Kf3 {[%clk 00:00:22]} {[%emt 00:00:08]} Qg4
{[%clk 00:00:22]} {[%emt 00:00:01]} 63. Ke3 {[%clk 00:00:25]} {[%emt 00:00:02]}
Qg3 {[%clk 00:00:27]} {[%emt 00:00:01]} 64. Ke2 {[%clk 00:00:22]} {[%emt
00:00:07]} Qg2+ {[%clk 00:00:26]} {[%emt 00:00:06]} 65. Kd2 {[%clk 00:00:23]}
{[%emt 00:00:04]} Qd5+ {[%clk 00:00:28]} {[%emt 00:00:03]} 66. Ke3 {[%clk
00:00:25]} {[%emt 00:00:02]} Qc5 {[%clk 00:00:24]} {[%emt 00:00:09]} 67. Ke2
{[%clk 00:00:25]} {[%emt 00:00:05]} Qb5+ {[%clk 00:00:28]} {[%emt 00:00:02]} 68.
Kf2 {[%clk 00:00:21]} {[%emt 00:00:09]} Qxe8 {[%clk 00:00:11]} {[%emt
00:00:22]} 69. g7 {[%clk 00:00:26]} Qe4 {[%clk 00:00:08]} {[%emt 00:00:07]} 70.
g8=Q {[%clk 00:00:26]} {[%emt 00:00:04]} Qxf4+ {[%clk 00:00:12]} {[%emt
00:00:01]} 71. Kg2 {[%clk 00:00:29]} {[%emt 00:00:02]} Qd2+ {[%clk 00:00:13]}
{[%emt 00:00:05]} 72. Kh3 {[%clk 00:00:33]} {[%emt 00:00:01]} Qh6 {[%clk
00:00:16]} {[%emt 00:00:02]} 73. Kg2 {[%clk 00:00:37]} Qd2+ {[%clk 00:00:14]}
{[%emt 00:00:07]} 74. Kh3 {[%clk 00:00:41]} Qh6 {[%emt 00:00:18]} 1/2-1/2

[Event "Kvibergspelen 2018"]
[Site "Prioritet Serneke Arena, Krutvagen 2, Gothenburg, Sweden"]
[Date "2018.04.21"]
[Round "3.20"]
[White "Rydstrom, Tom"]
[Black "Wellevit, Tomas"]
[Result "1-0"]
[TimeControl "15 minutes + 5 seconds per move from move one (Round 1 - 4) / 90 minutes + 30 seconds per move from move one (Round 5 - 8)"]
[WhiteTitle "FM"]
[WhiteFideId "1714830"]
[BlackFideId "1731963"]
[WhiteElo "2357"]
[BlackElo "1918"]

1. e4 {[%emt 00:00:19]} e6 {[%emt 00:00:04]} 2. d4 d5 {[%emt 00:00:01]} 3. Nc3
Bb4 {[%emt 00:00:02]} 4. e5 {[%emt 00:00:13]} Ne7 {[%emt 00:00:03]} 5. a3
{[%emt 00:00:24]} Bxc3+ {[%emt 00:00:25]} 6. bxc3 {[%emt 00:00:02]} O-O {[%emt
00:00:02]} 7. Nf3 {[%emt 00:00:08]} c5 {[%emt 00:00:02]} 8. Bd3 {[%emt
00:00:12]} c4 {[%emt 00:00:02]} 9. Bxh7+ {[%emt 00:02:02]} Kxh7 {[%emt
00:00:03]} 10. Ng5 Kg6 {[%emt 00:02:49]} 11. Qg4 {[%emt 00:00:04]} f5 {[%emt
00:00:01]} 12. Qg3 {[%emt 00:00:36]} Qa5 {[%emt 00:01:17]} 13. Bf4 {[%emt
00:03:07]} Rh8 {[%emt 00:01:58]} 14. Kd2 {[%emt 00:02:29]} Nbc6 {[%emt
00:00:06]} 15. Nxe6+ {[%emt 00:00:02]} Kf7 {[%emt 00:00:01]} 16. Qxg7+ {[%emt
00:00:02]} Kxe6 {[%emt 00:00:03]} 17. Qf6+ {[%emt 00:00:01]} Kd7 {[%emt
00:00:02]} 18. e6+ 1-0

[Event "Kvibergspelen 2018"]
[Site "Prioritet Serneke Arena, Krutvagen 2, Gothenburg, Sweden"]
[Date "2018.04.20"]
[Round "4.1"]
[White "Hector, Jonny"]
[Black "Johansson, Gunnar"]
[Result "1-0"]
[TimeControl "15 minutes + 5 seconds per move from move one (Round 1 - 4) / 90 minutes + 30 seconds per move from move one (Round 5 - 8)"]
[WhiteTitle "GM"]
[WhiteFideId "1700090"]
[BlackFideId "1703501"]
[WhiteElo "2502"]
[BlackElo "2212"]

1. e4 {[%clk 00:13:27]} {[%emt 00:01:42]} c5 {[%clk 00:15:08]} {[%emt
00:00:03]} 2. Nf3 {[%clk 00:13:30]} {[%emt 00:00:02]} e6 {[%clk 00:15:10]}
{[%emt 00:00:03]} 3. d4 {[%clk 00:13:33]} {[%emt 00:00:01]} cxd4 {[%clk
00:15:13]} {[%emt 00:00:02]} 4. Nxd4 {[%clk 00:13:36]} {[%emt 00:00:01]} Nc6
{[%clk 00:15:17]} {[%emt 00:00:02]} 5. Nc3 {[%clk 00:13:38]} {[%emt 00:00:03]}
Qc7 {[%clk 00:15:20]} {[%emt 00:00:02]} 6. Be3 {[%clk 00:13:34]} {[%emt
00:00:09]} a6 {[%clk 00:15:20]} {[%emt 00:00:06]} 7. Qf3 {[%clk 00:13:32]}
{[%emt 00:00:06]} Nf6 {[%clk 00:15:19]} {[%emt 00:00:07]} 8. O-O-O {[%clk
00:13:31]} {[%emt 00:00:04]} Ne5 {[%clk 00:15:09]} {[%emt 00:00:15]} 9. Qg3
{[%clk 00:13:29]} {[%emt 00:00:07]} b5 {[%clk 00:15:10]} {[%emt 00:00:05]} 10.
a3 {[%clk 00:13:12]} {[%emt 00:00:21]} Bb7 {[%clk 00:15:04]} {[%emt 00:00:12]}
11. Bxb5 {[%clk 00:12:21]} {[%emt 00:00:56]} axb5 {[%clk 00:13:44]} {[%emt
00:01:25]} 12. Ndxb5 {[%clk 00:12:22]} {[%emt 00:00:04]} Qb8 {[%clk 00:13:36]}
{[%emt 00:00:14]} 13. Bb6 {[%clk 00:12:20]} {[%emt 00:00:07]} Ng6 {[%clk
00:12:12]} {[%emt 00:01:29]} 14. Nc7+ {[%clk 00:12:05]} {[%emt 00:00:20]} Ke7
{[%clk 00:11:55]} {[%emt 00:00:23]} 15. Qd6+ {[%clk 00:11:12]} {[%emt
00:00:56]} Kd8 {[%clk 00:11:57]} {[%emt 00:00:04]} 16. Nxa8+ {[%clk 00:10:43]}
{[%emt 00:00:33]} Kc8 {[%clk 00:11:53]} {[%emt 00:00:10]} 17. Qxb8+ {[%clk
00:10:40]} {[%emt 00:00:08]} Kxb8 {[%clk 00:11:56]} {[%emt 00:00:03]} 18. Nc7
{[%clk 00:10:36]} {[%emt 00:00:09]} Be7 {[%clk 00:11:23]} {[%emt 00:00:37]} 19.
N7b5 {[%clk 00:10:38]} {[%emt 00:00:03]} Rc8 {[%clk 00:10:52]} {[%emt
00:00:36]} 20. Rhe1 {[%emt 00:01:30]} 1-0